bitfinex/quotes_SOLUSD_20220307
["timestamp","ask_amount","ask_price","bid_price","bid_amount"]
[1646658414424,0.25,84.059,84.012,5.949]
[1646658414625,0.25,84.066,84.013,6.25]
[1646658414826,0.25,84.066,84.014,5.949]
[1646658415025,0.25,84.066,84.015,6.25]
[1646658415627,0.25,84.066,84.015,0.25]
[1646658416832,0.25,84.066,84.012,0.25]
[1646658417634,0.25,84.067,84.02,17.8551]
[1646658417835,0.25,84.067,84.021,12.199]
[1646658418634,0.25,84.067,84.03,17.8517]
[1646658418834,0.25,84.067,84.031,6.25]
[1646658419237,0.25,84.067,84.031,0.25]
[1646658419837,0.25,84.067,84.015,6.198]
[1646658420037,0.25,84.067,84.016,6.0]
[1646658420237,0.25,84.067,84.02,17.8543]
[1646658420438,0.25,84.067,84.021,6.25]
[1646658420638,0.25,84.067,84.022,5.949]
[1646658420839,0.25,84.067,84.023,6.25]
[1646658421038,0.25,84.067,84.024,5.949]
[1646658421239,0.25,84.067,84.025,6.0]
[1646658421639,0.25,84.067,83.966,5.949]
[1646658421838,0.25,84.067,83.967,6.0]
[1646658422041,0.25,84.067,83.968,5.95]
[1646658422240,0.25,84.067,83.969,6.0]
[1646658422439,17.8595,84.06,83.99,17.8602]
[1646658422639,0.25,84.059,83.991,12.2]
[1646658424341,119.65,84.059,83.991,12.2]
[1646658424543,119.4,84.059,83.991,12.2]
[1646658424741,0.6186,84.066,84.0,17.859]
[1646658424942,23.9432,84.067,84.001,12.2]
[1646658426042,0.25,84.066,84.001,12.2]
[1646658427244,0.25,84.066,84.01,17.8561]
[1646658427444,0.25,84.066,84.011,12.199]
[1646658430966,0.25,84.066,84.011,6.25]
[1646658431370,17.8587,84.06,84.012,6.0]
[1646658431567,0.25,84.059,84.013,0.25]
[1646658432867,0.25,84.059,84.002,0.25]
[1646658433567,0.25,84.059,84.01,17.8568]
[1646658433769,0.25,84.061,84.011,6.25]
[1646658434068,1.60541886,84.063,84.011,6.25]
[1646658434069,0.25,84.062,84.011,6.25]
[1646658434268,0.25,84.062,84.011,0.25]
[1646658434468,2.21891886,84.061,84.011,0.25]
[1646658434671,1.85541886,84.06,84.011,0.25]
[1646658434870,19.46411886,84.06,84.0,17.8576]
[1646658435070,0.25,84.059,84.001,6.25]
[1646658435468,1.85541886,84.059,84.001,6.25]
[1646658435670,0.25,84.059,84.001,6.25]
[1646658438576,1.60541886,84.064,84.01,17.8563]
[1646658438773,1.60541886,84.075,84.011,6.25]
[1646658439174,1.60541886,84.076,84.011,6.25]
[1646658439372,1.60541886,84.073,84.02,17.8547]
[1646658439573,24.7753,84.083,84.021,6.25]
[1646658439574,1.60541886,84.076,84.021,6.25]
[1646658439776,24.7753,84.083,84.022,0.25]
[1646658439973,0.25,84.082,84.022,0.25]
[1646658440474,0.25,84.082,84.03,17.8477]
[1646658440674,35.44891575,84.082,84.031,6.0]
[1646658441276,35.44891575,84.082,84.022,0.2129358]
[1646658443278,35.44891575,84.082,84.03,17.8524]
[1646658443479,35.44891575,84.082,84.031,6.25]
[1646658444378,35.44891575,84.082,84.04,17.8507]
[1646658444578,35.44891575,84.082,84.041,6.25]
[1646658445579,0.25,84.082,84.041,6.25]
[1646658446682,46.69874831,84.082,84.041,0.25]
[1646658446880,46.69874831,84.082,84.032,0.25]
[1646658449683,46.69874831,84.082,84.04,17.8506]
[1646658449883,46.69874831,84.082,84.041,6.25]
[1646658450587,46.69874831,84.082,84.041,0.25]
[1646658450986,46.69874831,84.082,84.023,0.25]
[1646658451186,46.69874831,84.082,84.03,17.8524]
[1646658451386,46.69874831,84.082,84.031,6.25]
[1646658451586,24.7753,84.083,84.031,6.25]
[1646658451986,24.7753,84.083,84.031,0.25]
[1646658452187,1.60541886,84.101,84.04,17.8504]
[1646658452387,1.60541886,84.1,84.041,6.25]
[1646658452590,48.37252783,84.085,84.041,6.25]
[1646658453086,48.37252783,84.085,84.041,0.25]
[1646658453489,48.37252783,84.085,84.04,17.8492]
[1646658453687,48.37252783,84.085,84.041,6.25]
[1646658454488,48.37252783,84.085,84.041,0.25]
[1646658454687,25.39721886,84.107,84.041,0.25]
[1646658454887,23.7918,84.107,84.032,25.1342]
[1646658455188,0.25,84.106,84.05,17.8485]
[1646658455387,0.25,84.106,84.051,6.25]
[1646658455789,44.14445937,84.106,84.051,6.25]
[1646658456288,44.14445937,84.106,84.051,6.0]
[1646658457391,44.14445937,84.106,84.032,144.2842]
[1646658457392,44.14445937,84.106,84.06,17.846]
[1646658457693,44.14445937,84.106,84.061,6.25]
[1646658460392,44.14445937,84.106,84.061,0.25]
[1646658460593,44.14445937,84.106,84.052,0.25]
[1646658463196,44.14445937,84.106,84.053,5.946]
[1646658463401,1.60541886,84.117,84.06,17.8463]
[1646658463596,23.121,84.128,84.054,6.25]
[1646658463597,0.25,84.116,84.061,12.196]
[1646658463795,0.25,84.116,84.062,0.25]
[1646658463997,0.25,84.116,84.063,5.946]
[1646658464196,0.25,84.116,84.064,6.25]
[1646658464416,0.25,84.116,84.065,5.946]
[1646658464596,48.60821531,84.124,84.07,17.8404]
[1646658464597,0.25,84.123,84.07,17.8404]
[1646658464796,48.60821531,84.124,84.071,12.195]
[1646658466198,0.25,84.123,84.071,12.195]
[1646658466799,1.85541886,84.123,84.071,12.195]
[1646658467199,0.25,84.123,84.071,12.195]
[1646658470808,0.25,84.123,84.08,17.8421]
[1646658471004,0.25,84.123,84.081,12.195]
[1646658473430,1.60541886,84.131,84.083,0.14401197]
[1646658473725,114.1,84.201,84.083,0.14401197]
[1646658473726,1.60541886,84.158,84.092,0.33957164]
[1646658473926,1.60541886,84.172,84.094,0.33957164]
[1646658474125,1.60541886,84.182,84.096,0.33957164]
[1646658474326,38.52151207,84.171,84.11,17.8276]
[1646658474525,38.52151207,84.171,84.111,6.25]
[1646658475127,24.6471,84.17,84.111,6.25]
[1646658475528,24.6471,84.17,84.12,17.835]
[1646658475728,24.6471,84.17,84.121,6.25]
[1646658476328,24.6471,84.17,84.122,6.0]
[1646658476529,24.6471,84.17,84.123,0.25]
[1646658477131,24.6471,84.17,84.13,17.8329]
[1646658477331,0.25,84.169,84.131,6.25]
[1646658477531,0.25,84.169,84.131,0.25]
[1646658478330,0.25,84.169,84.096,0.25]
[1646658478534,0.25,84.169,84.12,17.8348]
[1646658478731,0.6201,84.168,84.121,6.25]
[1646658479131,0.6201,84.168,84.121,6.0]
[1646658479431,0.6201,84.168,84.096,6.0]
[1646658479831,0.25,84.169,84.096,6.0]
[1646658480131,0.25,84.169,84.11,17.8356]
[1646658480331,0.25,84.169,84.111,6.0]
[1646658480830,0.25,84.169,84.112,0.25]
[1646658481031,0.25,84.169,84.097,0.25]
[1646658481234,0.25,84.169,84.12,17.8346]
[1646658481433,0.25,84.169,84.121,6.25]
[1646658482931,0.25,84.169,84.13,17.8326]
[1646658483330,0.25,84.169,84.131,6.0]
[1646658484532,24.6471,84.17,84.121,6.25]
[1646658485132,24.6471,84.17,84.121,0.25]
[1646658485333,24.6471,84.17,84.111,6.25]
[1646658485532,24.6471,84.17,84.13,17.833]
[1646658485733,24.6471,84.17,84.131,6.25]
[1646658487937,0.6072,84.189,84.14,17.8304]
[1646658488235,0.25,84.192,84.141,6.25]
[1646658488435,24.2754,84.2,84.141,6.25]
[1646658488939,1.60541886,84.209,84.143,119.4]
[1646658489139,43.27431832,84.21,84.144,6.25]
[1646658489335,43.27431832,84.21,84.15,17.8254]
[1646658489536,43.27431832,84.21,84.151,6.25]
[1646658489735,0.25,84.209,84.151,6.25]
[1646658490137,0.25,84.209,84.151,0.25]
[1646658490838,0.25,84.209,84.146,0.25]
[1646658491340,0.25,84.209,84.16,17.8258]
[1646658491538,0.25,84.209,84.161,6.25]
[1646658492338,0.25,84.209,84.162,6.0]
[1646658492539,24.3776,84.219,84.17,17.8244]
[1646658492540,1.60541886,84.219,84.17,17.8244]
[1646658492739,0.6185,84.222,84.172,0.14622175]
[1646658492940,24.3776,84.237,84.172,0.14622175]
[1646658493139,24.3776,84.237,84.171,6.25]
[1646658493439,24.3776,84.237,84.172,6.0]
[1646658493440,37.11253741,84.236,84.172,6.0]
[1646658493641,1.60541886,84.242,84.181,119.4]
[1646658493841,1.60541886,84.255,84.184,0.18901149]
[1646658494043,1.60541886,84.26,84.184,6.43901149]
[1646658494244,1.60541886,84.26,84.184,6.25]
[1646658494444,1.60541886,84.263,84.184,6.25]
[1646658494744,39.34067493,84.259,84.185,5.936]
[1646658494944,39.34067493,84.259,84.186,6.25]
[1646658495143,22.7588,84.258,84.187,5.936]
[1646658495341,22.7588,84.258,84.188,6.25]
[1646658495545,22.7588,84.258,84.189,5.936]
[1646658495744,22.7588,84.258,84.19,6.25]
[1646658495942,22.7588,84.258,84.2,17.8122]
[1646658496142,22.7588,84.258,84.201,12.186]
[1646658497142,0.6624,84.264,84.21,17.8126]
[1646658497343,24.84821886,84.271,84.211,12.184]
[1646658497546,23.2428,84.271,84.211,12.184]
[1646658498143,70.57011375,84.271,84.211,12.184]
[1646658499144,70.57011375,84.271,84.22,17.8085]
[1646658499347,70.57011375,84.271,84.221,12.184]
[1646658499544,0.25,84.27,84.221,12.184]
[1646658499746,0.25,84.27,84.221,6.25]
[1646658499948,0.25,84.27,84.221,0.25]
[1646658500146,18.0644,84.27,84.221,0.25]
[1646658500346,18.0644,84.27,84.211,6.25]
[1646658500747,23.3331,84.269,84.211,0.25]
[1646658500947,0.25,84.268,84.205,6.184]
[1646658501145,0.25,84.268,84.206,6.0]
[1646658501348,17.8168,84.26,84.204,6.0]
[1646658501648,0.25,84.259,84.204,6.0]
[1646658501851,0.25,84.259,84.205,5.936]
[1646658502050,119.65,84.259,84.206,6.0]
[1646658502248,119.65,84.259,84.203,6.0]
[1646658502249,142.9704,84.259,84.203,6.0]
[1646658502452,17.8186,84.25,84.203,6.0]
[1646658502650,0.25,84.249,84.203,6.0]
[1646658503051,0.25,84.249,84.192,6.0]
[1646658503251,23.5704,84.249,84.191,6.0]
[1646658503451,23.5704,84.249,84.19,17.8193]
[1646658503656,23.5704,84.249,84.191,6.0]
[1646658504054,23.5704,84.249,84.192,0.25]
[1646658505064,119.4,84.248,84.192,0.25]
[1646658505257,46.24767343,84.239,84.192,0.25]
[1646658505457,0.25,84.238,84.192,0.25]
[1646658507679,0.25,84.238,84.2,17.8174]
[1646658507881,0.25,84.238,84.201,0.25]
[1646658509082,0.25,84.238,84.192,0.25]
[1646658509282,0.25,84.238,84.183,0.25]
[1646658509883,0.25,84.238,84.19,17.8192]
[1646658510181,0.25,84.238,84.191,6.25]
[1646658512188,55.0,84.237,84.134,0.0027]
[1646658512385,124.44573785,84.229,84.071,49.2311]
[1646658512589,1.60541886,84.205,84.071,66.6553]
[1646658512785,119.4,84.189,84.052,12.41639546]
[1646658512986,1.60541886,84.177,84.096,0.55768279]
[1646658513188,119.4,84.169,84.096,0.55768279]
[1646658513389,34.9937,84.16,84.096,0.55768279]
[1646658513594,6.60949577,84.159,84.096,0.55768279]
[1646658513790,0.66749577,84.159,84.097,5.942]
[1646658513990,0.66749577,84.159,84.098,34.13672714]
[1646658514194,0.41749577,84.159,84.099,5.942]
[1646658514694,0.25,84.164,84.1,0.25]
[1646658514892,0.25,84.164,84.101,5.942]
[1646658515092,0.25,84.164,84.102,6.25]
[1646658515291,0.25,84.164,84.103,5.942]
[1646658515492,0.25,84.166,84.104,6.25]
[1646658515693,0.25,84.167,84.105,5.942]
[1646658515893,6.25,84.167,84.106,6.25]
[1646658516093,6.25,84.167,84.104,6.25]
[1646658516494,6.25,84.167,84.104,0.25]
[1646658516699,37.3625651,84.166,84.104,0.25]
[1646658516902,6.25,84.165,84.1,0.25]
[1646658517096,12.192,84.165,84.1,0.25]
[1646658517299,12.192,84.165,84.099,6.0]
[1646658519000,12.192,84.165,84.1,0.25]
[1646658519201,5.942,84.165,84.1,18.0854]
[1646658519401,23.7918,84.168,84.101,11.942]
[1646658519601,23.7918,84.168,84.102,0.25]
[1646658519805,22.735,84.189,84.103,5.942]
[1646658520003,22.735,84.189,84.105,119.4]
[1646658520201,22.735,84.189,84.107,119.4]
[1646658520402,22.735,84.189,84.109,119.4]
[1646658520608,22.735,84.189,84.11,6.25]
[1646658520804,22.735,84.189,84.111,38.9347142]
[1646658521003,22.735,84.189,84.112,6.25]
[1646658521203,0.25,84.188,84.112,6.25]
[1646658522306,0.25,84.188,84.112,6.0]
[1646658522505,119.65,84.188,84.112,6.0]
[1646658522705,5.941,84.187,84.112,6.0]
[1646658522905,0.25,84.186,84.112,6.0]
[1646658523207,5.941,84.185,84.112,6.0]
[1646658523404,17.834,84.18,84.112,6.0]
[1646658523604,44.80683379,84.179,84.113,0.25]
[1646658523806,0.25,84.178,84.113,0.25]
[1646658525006,0.25,84.178,84.12,17.8318]
[1646658525305,0.25,84.178,84.121,6.25]
[1646658529210,119.65,84.178,84.122,6.0]
[1646658529409,119.65,84.178,84.112,6.0]
[1646658529611,119.4,84.176,84.112,6.0]
[1646658529912,0.25,84.175,84.112,6.0]
[1646658530110,17.8362,84.17,84.112,6.0]
[1646658530311,0.25,84.169,84.112,6.0]
[1646658530511,0.25,84.169,84.113,0.25]
[1646658535724,34.25253816,84.159,84.113,0.25]
[1646658535921,0.25,84.158,84.113,0.25]
[1646658536122,0.25,84.158,84.112,0.25]
[1646658536722,17.8401,84.15,84.112,0.25]
[1646658536922,0.25,84.149,84.112,0.25]
[1646658537625,0.25,84.149,84.104,0.25]
[1646658537823,0.25,84.158,84.104,0.25]
[1646658538023,0.25,84.158,84.104,6.25]
[1646658538223,0.25,84.158,84.105,45.80238853]
[1646658538422,0.25,84.158,84.106,6.25]
[1646658538823,0.25,84.158,84.11,17.8356]
[1646658539024,0.25,84.158,84.111,6.25]
[1646658539223,0.25,84.158,84.112,0.25]
[1646658539436,0.25,84.158,84.106,6.25]
[1646658541440,0.25,84.158,84.11,17.8358]
[1646658541639,0.25,84.158,84.111,6.25]
[1646658542642,24.3513,84.167,84.111,6.25]
[1646658542840,24.3513,84.167,84.12,17.8331]
[1646658543040,24.3513,84.167,84.121,6.25]
[1646658543239,24.3513,84.167,84.122,0.15277521]
[1646658543441,1.60541886,84.179,84.122,0.15277521]
[1646658543639,1.60541886,84.179,84.122,46.13614539]
[1646658543839,1.60541886,84.184,84.123,6.25]
[1646658544040,23.0007,84.187,84.13,17.8314]
[1646658544240,23.0007,84.187,84.131,6.25]
[1646658544840,23.0007,84.187,84.132,6.0]
[1646658545041,0.25,84.186,84.14,17.8282]
[1646658545242,23.0007,84.187,84.141,6.25]
[1646658546140,23.0007,84.187,84.15,17.8271]
[1646658546340,23.0007,84.187,84.151,6.25]
[1646658548942,23.0007,84.187,84.151,0.25]
[1646658549143,23.0007,84.187,84.144,0.25]
[1646658549843,23.0007,84.187,84.15,17.8271]
[1646658550044,1.60541886,84.21,84.151,6.25]
[1646658550246,1.60541886,84.216,84.152,125.589]
[1646658550443,1.60541886,84.216,84.154,119.4]
[1646658550643,25.44691886,84.222,84.156,48.11893462]
[1646658550844,23.8415,84.222,84.16,17.8251]
[1646658551043,23.8415,84.222,84.161,12.188]
[1646658552546,5.938,84.232,84.17,17.82]
[1646658552750,1.60541886,84.238,84.171,12.188]
[1646658552947,6.187,84.236,84.171,6.25]
[1646658553347,6.187,84.236,84.172,54.13602774]
[1646658553549,6.187,84.236,84.173,0.25]
[1646658553749,6.187,84.236,84.173,6.25]
[1646658553948,30.0129,84.236,84.18,17.8189]
[1646658554149,30.0129,84.236,84.181,6.25]
[1646658554849,30.0129,84.236,84.182,6.0]
[1646658555049,30.0129,84.236,84.19,17.8185]
[1646658555251,30.0129,84.236,84.191,36.1017772]
[1646658555650,30.0129,84.236,84.191,35.8517772]
[1646658556450,24.0759,84.236,84.191,35.8517772]
[1646658556850,24.0759,84.236,84.192,6.25]
[1646658558052,23.8259,84.236,84.192,6.25]
[1646658558254,1.60541886,84.253,84.2,17.8159]
[1646658558453,0.25,84.252,84.201,6.25]
[1646658559052,0.25,84.252,84.202,6.0]
[1646658559255,24.7666,84.258,84.21,17.8143]
[1646658559454,24.7666,84.258,84.211,6.25]
[1646658560253,24.7666,84.258,84.212,6.0]
[1646658560455,24.7666,84.258,84.211,0.25]
[1646658560654,0.25,84.257,84.197,6.25]
[1646658560855,0.25,84.257,84.198,5.936]
[1646658561055,0.25,84.257,84.199,6.25]
[1646658561256,0.25,84.257,84.211,43.00294827]
[1646658561455,0.25,84.257,84.212,6.25]
[1646658562255,0.25,84.257,84.212,0.25]
[1646658564460,0.25,84.257,84.212,6.184]
[1646658564657,0.25,84.257,84.213,6.0]
[1646658564858,0.25,84.257,84.214,0.25]
[1646658567159,0.25,84.257,84.215,5.934]
[1646658567360,0.25,84.257,84.216,6.25]
[1646658567958,0.25,84.257,84.216,0.25]
[1646658568459,0.25,84.257,84.215,6.25]
[1646658568859,0.25,84.257,84.215,0.25]
[1646658569060,0.25,84.257,84.214,6.184]
[1646658569260,0.25,84.257,84.215,6.0]
[1646658569461,0.25,84.257,84.216,0.25]
[1646658569863,0.25,84.257,84.216,6.184]
[1646658570062,24.7666,84.258,84.217,6.0]
[1646658570262,1.60541886,84.267,84.22,17.8119]
[1646658570462,0.25,84.266,84.221,12.184]
[1646658571563,0.25,84.273,84.23,17.8098]
[1646658571762,1.60541886,84.275,84.232,35.88711167]
[1646658571964,1.60541886,84.301,84.233,131.584]
[1646658572165,1.60541886,84.307,84.234,0.14070816]
[1646658572362,1.60541886,84.307,84.236,0.14070816]
[1646658572564,1.60541886,84.314,84.237,125.333]
[1646658572763,1.60541886,84.314,84.239,119.4]
[1646658572964,1.60541886,84.314,84.241,119.4]
[1646658573163,1.60541886,84.314,84.24,12.182]
[1646658573164,1.60541886,84.314,84.243,119.4]
[1646658573367,1.60541886,84.314,84.245,43.62608001]
[1646658573564,1.60541886,84.313,84.246,12.182]
[1646658573763,23.0225,84.318,84.247,23.5022]
[1646658573764,0.25,84.312,84.247,23.5022]
[1646658573963,0.25,84.313,84.248,12.182]
[1646658574163,1.85541886,84.313,84.25,17.805]
[1646658574363,1.85541886,84.313,84.251,12.182]
[1646658574563,0.25,84.313,84.251,6.25]
[1646658574763,1.60541886,84.316,84.251,6.25]
[1646658574965,1.60541886,84.316,84.251,12.182]
[1646658575164,5.932,84.317,84.251,12.182]
[1646658575363,23.0225,84.318,84.26,17.8028]
[1646658575563,23.0225,84.318,84.262,40.63802789]
[1646658575763,23.0225,84.318,84.263,6.25]
[1646658577172,0.25,84.317,84.27,17.8012]
[1646658577371,0.25,84.317,84.271,6.25]
[1646658578573,23.0225,84.318,84.271,6.25]
[1646658578871,5.931,84.333,84.28,17.7986]
[1646658578872,1.60541886,84.33,84.28,17.7986]
[1646658579071,1.60541886,84.33,84.281,6.25]
[1646658579271,1.60541886,84.338,84.282,6.25]
[1646658579471,1.60541886,84.338,84.271,6.25]
[1646658579670,1.60541886,84.337,84.271,6.25]
[1646658579870,1.60541886,84.338,84.29,17.7936]
[1646658580072,1.60541886,84.337,84.291,6.25]
[1646658580272,1.60541886,84.338,84.291,6.25]
[1646658580696,1.60541886,84.342,84.291,6.25]
[1646658580895,5.93,84.347,84.292,41.79306724]
[1646658580896,1.60541886,84.343,84.292,41.79306724]
[1646658581096,5.93,84.347,84.292,41.79306724]
[1646658581097,1.60541886,84.342,84.293,6.25]
[1646658581294,1.60541886,84.341,84.293,6.25]
[1646658581493,1.60541886,84.342,84.293,6.25]
[1646658581693,1.60541886,84.346,84.293,6.25]
[1646658582094,24.6243,84.348,84.293,6.25]
[1646658585295,0.25,84.347,84.293,6.25]
[1646658586199,17.7996,84.34,84.293,6.0]
[1646658586396,0.25,84.339,84.265,6.0]
[1646658586696,1.60541886,84.345,84.265,6.0]
[1646658586896,1.85541886,84.344,84.265,6.0]
[1646658587296,40.9443525,84.344,84.266,41.78561903]
[1646658587496,1.60541886,84.343,84.267,6.25]
[1646658587696,0.25,84.342,84.267,6.25]
[1646658588096,1.85541886,84.342,84.267,6.25]
[1646658588497,17.7998,84.34,84.27,17.7998]
[1646658588701,0.25,84.339,84.271,6.25]
[1646658589298,0.25,84.339,84.272,6.0]
[1646658589598,0.25,84.339,84.273,0.25]
[1646658589898,0.25,84.339,84.271,0.25]
[1646658590098,0.25,84.339,84.28,17.7983]
[1646658590299,0.25,84.339,84.282,35.58899346]
[1646658590499,0.25,84.339,84.283,6.25]
[1646658593601,0.25,84.339,84.29,17.7978]
[1646658593802,40.6943525,84.344,84.291,6.25]
[1646658593803,0.25,84.343,84.291,6.25]
[1646658595303,1.60541886,84.342,84.291,6.25]
[1646658595703,40.6943525,84.344,84.291,6.25]
[1646658596703,0.25,84.343,84.291,6.25]
[1646658597105,1.60541886,84.339,84.291,6.25]
[1646658597505,1.60541886,84.338,84.291,6.25]
[1646658598306,1.60541886,84.337,84.291,6.25]
[1646658598707,0.25,84.343,84.291,6.25]
[1646658598708,1.60541886,84.338,84.291,6.25]
[1646658598907,1.60541886,84.337,84.291,6.25]
[1646658599109,1.60541886,84.338,84.291,6.25]
[1646658599508,1.60541886,84.326,84.291,6.25]
[1646658600709,1.60541886,84.325,84.291,6.25]
[1646658601814,1.60541886,84.328,84.291,6.25]
[1646658602408,1.60541886,84.326,84.291,6.25]
[1646658603208,1.60541886,84.325,84.291,6.25]
[1646658603912,1.60541886,84.326,84.291,6.25]
[1646658604311,1.60541886,84.323,84.291,6.25]
[1646658604511,1.60541886,84.328,84.3,17.795]
[1646658604712,1.60541886,84.328,84.301,6.25]
[1646658604913,1.60541886,84.329,84.301,6.25]
[1646658605314,1.60541886,84.329,84.302,47.61025058]
[1646658605515,1.60541886,84.329,84.303,6.25]
[1646658606116,3.21425007,84.353,84.303,6.25]
[1646658606117,1.61153832,84.338,84.303,6.25]
[1646658606317,1.61153832,84.338,84.304,125.329]
[1646658606516,1.61153832,84.342,84.31,17.793]
[1646658606718,1.61153832,84.342,84.312,0.33841899]
[1646658606917,1.61153832,84.344,84.314,0.33841899]
[1646658607119,1.61153832,84.343,84.314,6.58841899]
[1646658607321,1.61153832,84.343,84.315,40.96373326]
[1646658607518,1.61153832,84.338,84.316,6.25]
[1646658607918,1.61153832,84.337,84.316,6.25]
[1646658609122,1.61153832,84.34,84.316,6.25]
[1646658609620,1.61153832,84.34,84.32,17.7911]
[1646658609821,1.61153832,84.34,84.321,6.25]
[1646658610225,1.61153832,84.34,84.321,0.25]
[1646658610422,22.7779,84.36,84.321,0.25]
[1646658610423,1.61153832,84.339,84.321,0.25]
[1646658610624,1.61153832,84.339,84.316,6.0]
[1646658610825,1.61153832,84.334,84.314,0.03]
[1646658611224,1.61153832,84.33,84.314,0.03]
[1646658611424,1.61153832,84.329,84.314,0.03]
[1646658611625,1.61153832,84.328,84.314,0.03]
[1646658611829,1.61153832,84.332,84.314,0.03]
[1646658612129,1.61153832,84.334,84.314,0.03]
[1646658613126,1.61153832,84.335,84.314,0.03]
[1646658613326,110.0,84.334,84.301,0.109]
[1646658613727,110.0,84.334,84.302,5.929]
[1646658614127,1.61153832,84.339,84.303,41.05557695]
[1646658614328,1.61153832,84.339,84.304,5.929]
[1646658614549,1.61153832,84.341,84.304,5.929]
[1646658614752,1.61153832,84.342,84.304,5.929]
[1646658615250,1.61153832,84.341,84.305,6.25]
[1646658615551,1.61153832,84.341,84.306,5.929]
[1646658615749,1.61153832,84.341,84.307,6.25]
[1646658616050,1.61153832,84.341,84.308,5.929]
[1646658616348,1.61153832,84.34,84.309,6.25]
[1646658616749,1.61153832,84.339,84.309,6.25]
[1646658617451,1.61153832,84.34,84.309,6.25]
[1646658617651,1.61153832,84.339,84.309,6.25]
[1646658618653,1.61153832,84.34,84.31,17.793]
[1646658618852,1.61153832,84.341,84.311,6.25]
[1646658619252,1.61153832,84.344,84.311,6.25]
[1646658619652,1.61153832,84.344,84.311,0.25]
[1646658619856,1.61153832,84.338,84.31,0.25]
[1646658620053,1.61153832,84.338,84.305,0.25]
[1646658620253,1.61153832,84.337,84.305,0.25]
[1646658620455,1.61153832,84.336,84.304,0.25]
[1646658620654,1.61153832,84.336,84.304,6.25]
[1646658620957,1.61153832,84.337,84.304,6.25]
[1646658621655,1.61153832,84.335,84.304,6.25]
[1646658622457,1.61153832,84.337,84.304,6.25]
[1646658623657,1.61153832,84.336,84.304,6.25]
[1646658623958,1.61153832,84.337,84.304,6.25]
[1646658624256,1.61153832,84.336,84.31,17.7931]
[1646658624456,1.61153832,84.336,84.311,6.25]
[1646658624755,1.61153832,84.338,84.311,6.25]
[1646658626156,1.61153832,84.337,84.311,6.25]
[1646658626557,1.61153832,84.336,84.311,6.25]
[1646658627358,1.61153832,84.337,84.311,6.25]
[1646658627757,1.61153832,84.336,84.311,6.25]
[1646658628357,1.61153832,84.34,84.32,17.7906]
[1646658628557,1.61153832,84.342,84.321,6.25]
[1646658628857,1.61153832,84.343,84.322,6.25]
[1646658629057,1.61153832,84.344,84.322,6.25]
[1646658629257,1.61153832,84.345,84.323,48.30753643]
[1646658629455,1.61153832,84.346,84.324,6.25]
[1646658629657,1.61153832,84.348,84.324,6.25]
[1646658629858,1.61153832,84.35,84.324,6.25]
[1646658630057,1.61153832,84.352,84.33,17.7885]